fUST/lending_fUST_20241105
["ID","MTS","AMOUNT","RATE_DAILY","PERIOD"]
[341319513,1730785840830,-945.44516359,0.00031506,30]
[341319514,1730785840839,-1000.0,0.00031506,30]
[341319515,1730785840848,-1000.0,0.00031506,30]
[341319516,1730785840857,-1000.0,0.00031506,30]
[341319517,1730785840867,-1000.0,0.00031506,30]
[341319518,1730785840876,-500.0,0.00031506,3]
[341319519,1730785840885,-520.78,0.00031506,3]
[341319520,1730785840895,-1323.7,0.00031506,3]
[341319521,1730785840905,-500.0,0.00031506,3]
[341319522,1730785840914,-159.10793352,0.00031506,3]
[341319523,1730785840923,-500.0,0.00031506,3]
[341319524,1730785840933,-1486.33,0.00031506,3]
[341319525,1730785840943,-866.98,0.00031506,3]
[341319526,1730785840952,-500.0,0.00031506,3]
[341319527,1730785840961,-500.0,0.00031506,3]
[341319528,1730785840970,-196.402016,0.00031506,7]
[341319529,1730785840980,-500.0,0.00031506,3]
[341319530,1730785840990,-500.0,0.00031506,3]
[341319531,1730785841000,-151.0,0.00031506,7]
[341319532,1730785841009,-151.0,0.00031506,7]
[341319533,1730785841018,-598.67150824,0.00031506,3]
[341319534,1730785841028,-979.99,0.00031506,3]
[341319535,1730785841037,-500.0,0.00031506,3]
[341319536,1730785841047,-500.0,0.00031506,3]
[341319537,1730785841057,-691.1,0.00031506,3]
[341319538,1730785841066,-322.49337865,0.00031506,3]
[341319539,1730785841079,-177.50662135,0.00031506,3]
[341319540,1730785841089,-500.0,0.00031506,3]
[341319541,1730785841098,-500.0,0.00031506,3]
[341319542,1730785841108,-1000.0,0.0003178,30]
[341319543,1730785841118,-500.0,0.0003178,3]
[341319544,1730785841127,-520.78,0.0003178,3]
[341319545,1730785841137,-1323.7,0.0003178,3]
[341319546,1730785841146,-500.0,0.0003178,3]
[341319547,1730785841156,-580.42209627,0.0003178,3]
[341319548,1730785841165,-1486.33,0.0003178,3]
[341319549,1730785841174,-866.98,0.0003178,3]
[341319550,1730785841183,-500.0,0.0003178,3]
[341319551,1730785841194,-500.0,0.0003178,3]
[341319552,1730785841204,-500.0,0.0003178,3]
[341319553,1730785841214,-215.70604754,0.0003178,3]
[341319554,1730785841224,-151.0,0.0003178,7]
[341319555,1730785841233,-979.99,0.0003178,3]
[341319556,1730785841242,-500.0,0.0003178,3]
[341319557,1730785841251,-500.0,0.0003178,3]
[341319558,1730785841261,-691.1,0.0003178,3]
[341319559,1730785841270,-500.0,0.0003178,3]
[341319560,1730785841280,-421.51634266,0.0003178,3]
[341319561,1730785841289,-500.0,0.0003178,3]
[341319562,1730785841299,-818.8363124,0.0003188,2]
[341319563,1730785841308,-500.0,0.0003192,2]
[341319564,1730785841318,-600.0,0.00032053,2]
[341319565,1730785841328,-1000.0,0.00032054,30]
[341319566,1730785841337,-500.0,0.00032054,3]
[341319567,1730785841346,-520.78,0.00032054,3]
[341319568,1730785841356,-1323.7,0.00032054,3]
[341319569,1730785841365,-500.0,0.00032054,3]
[341319570,1730785841374,-1486.33,0.00032054,3]
[341319571,1730785841383,-687.32257978,0.00032054,3]
[341319572,1730785841395,-179.65742022,0.00032054,3]
[341319573,1730785841405,-500.0,0.00032054,3]
[341319574,1730785841415,-500.0,0.00032054,3]
[341319575,1730785841424,-500.0,0.00032054,3]
[341319576,1730785841433,-151.0,0.00032054,7]
[341319577,1730785841443,-979.99,0.00032054,3]
[341319578,1730785841452,-500.0,0.00032054,3]
[341319579,1730785841461,-500.0,0.00032054,3]
[341319580,1730785841470,-691.1,0.00032054,3]
[341319581,1730785841480,-500.0,0.00032054,3]
[341319582,1730785841490,-500.0,0.00032054,3]
[341319583,1730785841502,-428.1431047,0.000322,2]
[341319584,1730785841511,-153.0,0.00032221,2]
[341319585,1730785841520,-153.0,0.00032221,2]
[341319586,1730785841530,-153.0,0.00032221,2]
[341319587,1730785841539,-153.0,0.00032221,2]
[341319588,1730785841548,-1000.0,0.00032228,2]
[341319589,1730785841557,-153.0,0.00032231,2]
[341319590,1730785841567,-153.0,0.00032231,2]
[341319591,1730785841575,-153.0,0.00032231,2]
[341319592,1730785841585,-153.0,0.00032231,2]
[341319593,1730785841594,-153.0,0.00032241,2]
[341319594,1730785841604,-153.0,0.00032241,2]
[341319595,1730785841613,-153.0,0.00032241,2]
[341319596,1730785841623,-153.0,0.00032241,2]
[341319597,1730785841632,-153.0,0.00032251,2]
[341319598,1730785841641,-153.0,0.00032251,2]
[341319599,1730785841650,-153.0,0.00032251,2]
[341319600,1730785841659,-153.0,0.00032251,2]
[341319601,1730785841668,-318.513845,0.00032261,2]
[341319602,1730785841678,-500.0,0.00032318,5]
[341319603,1730785841689,-1000.0,0.00032328,30]
[341319604,1730785841698,-500.0,0.00032328,3]
[341319605,1730785841707,-520.78,0.00032328,3]
[341319606,1730785841715,-1323.7,0.00032328,3]
[341319607,1730785841725,-500.0,0.00032328,3]
[341319608,1730785841733,-1486.33,0.00032328,3]
[341319609,1730785841743,-866.98,0.00032328,3]
[341319610,1730785841752,-500.0,0.00032328,3]
[341319611,1730785841762,-500.0,0.00032328,3]
[341319612,1730785841770,-500.0,0.00032328,3]
[341319613,1730785841780,-979.99,0.00032328,3]
[341319614,1730785841790,-500.0,0.00032328,3]
[341319615,1730785841800,-500.0,0.00032328,3]
[341319616,1730785841810,-691.1,0.00032328,3]
[341319617,1730785841818,-185.84049093,0.00032328,3]
[341319618,1730785841831,-314.15950907,0.00032328,3]
[341319619,1730785841840,-327.52049093,0.00032328,3]
[341319652,1730785843439,-172.47950907,0.00032328,3]
[341319654,1730785843449,-209.0,0.000324,120]
[341319656,1730785843458,-111.35632914,0.000324,2]
[341319673,1730785846188,-820.93480451,0.00030136,3]
[341319697,1730786302004,161.524876,0.00013973,2]
[341319715,1730786837148,-233.6496447,0.00028373,2]
[341319716,1730786837170,-300.0,0.0002924,2]
[341319717,1730786837191,-300.0,0.0002924,2]
[341319718,1730786837213,-500.0,0.00029241,2]
[341319719,1730786837234,-500.0,0.00029241,2]
[341319720,1730786837256,-487.16973054,0.00029241,2]
[341319721,1730786837278,-500.0,0.00029241,2]
[341319722,1730786837298,-500.0,0.00029241,2]
[341319723,1730786837319,-500.0,0.00029241,2]
[341319724,1730786837340,-500.0,0.00029241,2]
[341319725,1730786837366,-500.0,0.00029241,2]
[341319726,1730786837388,-500.0,0.00029241,2]
[341319727,1730786837409,-500.0,0.00029241,2]
[341319728,1730786837431,-500.0,0.00029241,2]
[341319729,1730786837451,-500.0,0.00029241,2]
[341319730,1730786837471,-500.0,0.00029241,2]
[341319731,1730786837493,-500.0,0.00029241,2]
[341319732,1730786837515,-500.0,0.00029241,2]
[341319733,1730786837536,-500.0,0.00029241,2]
[341319734,1730786837557,-500.0,0.00029241,2]
[341319735,1730786837578,-500.0,0.00029241,2]
[341319736,1730786837599,-500.0,0.00029241,2]
[341319737,1730786837620,-9313.351685,0.00029245,2]
[341319738,1730786837641,-156.0,0.0003,2]
[341319739,1730786837662,-834.03690706,0.00030036,2]
[341319740,1730786837683,-165.10792617,0.00030135,2]
[341319741,1730786837703,-500.0,0.00030136,3]
[341319742,1730786837723,-500.0,0.00030136,3]
[341319743,1730786837744,-522.15833741,0.00030136,3]
[341319744,1730786837769,-505.6070616,0.00030136,3]
[341319745,1730786837790,-508.00110465,0.00030136,3]
[341319746,1730786837811,-510.32169132,0.00030136,3]
[341319747,1730786837830,-518.56253886,0.00030136,3]
[341319748,1730786837852,-511.45859781,0.00030136,3]
[341319749,1730786837873,-505.14192693,0.00030136,3]
[341319750,1730786837895,-505.34688401,0.00030136,3]
[341319751,1730786837916,-510.56815051,0.00030136,3]
[341319752,1730786837936,-500.0,0.00030136,3]
[341319753,1730786837958,-511.7697403,0.00030136,3]
[341319754,1730786837982,-500.0,0.00030136,3]
[341319755,1730786838004,-500.0,0.00030136,3]
[341319756,1730786838025,-533.72076476,0.00030136,3]
[341319757,1730786838047,-516.24241494,0.00030136,3]
[341319758,1730786838069,-522.80351404,0.00030136,3]
[341319759,1730786838090,-500.0,0.00030136,3]
[341319760,1730786838111,-500.0,0.00030136,3]
[341319761,1730786838132,-503.40204471,0.00030136,3]
[341319762,1730786838153,-504.31928706,0.00030136,3]
[341319763,1730786838173,-541.66679489,0.00030136,3]
[341319764,1730786838192,-512.94337745,0.00030136,3]
[341319765,1730786838213,-511.09471507,0.00030136,3]
[341319766,1730786838233,-500.0,0.00030136,3]
[341319767,1730786838255,-500.0,0.00030136,3]
[341319768,1730786838275,-500.0,0.00030136,3]
[341319769,1730786838296,-500.0,0.00030136,3]
[341319770,1730786838318,-500.0,0.00030136,3]
[341319771,1730786838340,-500.0,0.00030136,3]
[341319772,1730786838362,-500.0,0.00030136,3]
[341319773,1730786838383,-500.0,0.00030136,3]
[341319774,1730786838405,-500.0,0.00030136,3]
[341319775,1730786838426,-524.89959751,0.00030136,3]
[341319776,1730786838448,-523.09057148,0.00030136,3]
[341319777,1730786838472,-676.21,0.00030136,3]
[341319778,1730786838494,-500.0,0.00030136,3]
[341319779,1730786838517,-532.66597956,0.00030136,3]
[341319780,1730786838541,-711.73,0.00030136,3]
[341319781,1730786838576,-500.0,0.00030136,3]
[341319782,1730786838600,-500.0,0.00030136,3]
[341319783,1730786838622,-515.31520182,0.00030136,3]
[341319784,1730786838644,-500.0,0.00030136,3]
[341319785,1730786838668,-500.0,0.00030136,3]
[341319786,1730786838691,-322.13599331,0.00030136,3]
[341319787,1730786838713,-500.0,0.00030136,3]
[341319788,1730786838735,-515.17693217,0.00030136,3]
[341319789,1730786838759,-500.0,0.00030136,3]
[341319790,1730786838780,-868.98,0.00030136,3]
[341319791,1730786838803,-240.2609672,0.00030137,2]
[341319792,1730786838824,-310.30221024,0.00030406,3]
[341319793,1730786838847,-500.0,0.00030406,3]
[341319794,1730786838872,-500.0,0.00030406,3]
[341319795,1730786839014,-514.36344398,0.00030406,3]
[341319796,1730786839035,-516.9183197,0.00030406,3]
[341319797,1730786839058,-513.54284604,0.00030406,3]
[341319798,1730786839082,-526.3272436,0.00030406,3]
[341319799,1730786839105,-430.05011182,0.00030406,3]
[341319800,1730786839128,-512.37006884,0.00030409,3]
[341319801,1730786839150,-500.0,0.00030409,3]
[341319802,1730786839171,-506.154005,0.00030409,3]
[341319803,1730786839193,-559.49418644,0.00030409,3]
[341319804,1730786839215,-500.0,0.00030409,3]
[341319805,1730786839237,-202.31237257,0.00030409,3]
[341319806,1730786839260,-508.2552378,0.00030409,3]
[341319807,1730786839284,-500.0,0.00030409,3]
[341319808,1730786839305,-168.03056911,0.00030409,3]
[341319809,1730786839325,-550.95904175,0.00030409,3]
[341319810,1730786839346,-500.0,0.00030409,3]
[341319811,1730786839367,-500.0,0.00030409,3]
[341319812,1730786839392,-500.0,0.00030409,3]
[341319813,1730786839415,-500.0,0.00030409,3]
[341319814,1730786839439,-500.0,0.00030409,3]
[341319815,1730786839461,-607.19285194,0.00030409,3]
[341319816,1730786839484,-592.83424553,0.00030409,3]
[341319817,1730786839509,-500.0,0.00030409,3]
[341319818,1730786839531,-500.0,0.00030409,3]
[341319819,1730786839555,-500.0,0.00030409,2]
[341319820,1730786839579,-500.0,0.00030409,3]
[341319821,1730786839602,-503.71868973,0.00030409,3]
[341319822,1730786839624,-500.0,0.00030409,3]
[341319823,1730786839647,-406.63495176,0.00030409,3]
[341319824,1730786839670,-500.0,0.00030409,3]
[341319825,1730786839693,-500.0,0.00030409,3]
[341319826,1730786839715,-500.0,0.0003041,3]
[341319827,1730786839737,-522.13619033,0.0003041,3]
[341319828,1730786839758,-513.49079897,0.0003041,3]
[341319829,1730786839780,-495.0,0.0003041,3]
[341319830,1730786839802,-512.56023214,0.0003041,3]
[341319831,1730786839824,-513.49387309,0.0003041,3]
[341319832,1730786839845,-542.84640084,0.0003041,3]
[341319833,1730786839867,-500.0,0.0003041,3]
[341319834,1730786839888,-518.55818563,0.0003041,3]
[341319835,1730786839909,-513.75599696,0.0003041,3]
[341319836,1730786839933,-500.0,0.0003041,3]
[341319837,1730786839957,-676.21,0.0003041,3]
[341319838,1730786839978,-539.49791394,0.0003041,3]
[341319839,1730786840006,-711.73,0.0003041,3]
[341319840,1730786840028,-500.0,0.0003041,3]
[341319841,1730786840049,-512.56711674,0.0003041,3]
[341319842,1730786840073,-556.97226258,0.0003041,3]
[341319843,1730786840095,-500.0,0.0003041,3]
[341319844,1730786840117,-500.0,0.0003041,3]
[341319845,1730786840139,-500.0,0.0003041,3]
[341319846,1730786840161,-868.98,0.0003041,3]
[341319847,1730786840182,-517.96586431,0.0003068,3]
[341319848,1730786840204,-159.9454836,0.0003068,3]
[341319849,1730786840228,-519.23943791,0.00030683,3]
[341319850,1730786840252,-514.69674907,0.00030683,3]
[341319851,1730786840274,-511.10636358,0.00030683,3]
[341319852,1730786840296,-500.0,0.00030683,3]
[341319853,1730786840317,-500.0,0.00030683,3]
[341319854,1730786840342,-500.0,0.00030683,3]
[341319855,1730786840363,-511.64229523,0.00030683,3]
[341319856,1730786840384,-527.94883455,0.00030683,3]
[341319857,1730786840406,-151.0,0.00030683,7]
[341319858,1730786840427,-151.0,0.00030683,7]
[341319859,1730786840449,-554.45448246,0.00030683,3]
[341319860,1730786840471,-518.45716922,0.00030683,3]
[341319861,1730786840492,-151.0,0.00030683,7]
[341319862,1730786840516,-523.0685208,0.00030683,3]
[341319863,1730786840538,-500.0,0.00030683,3]
[341319864,1730786840560,-500.0,0.00030684,3]
[341319865,1730786840583,-187.241,0.00030684,27]
[341319866,1730786840608,-500.0,0.00030684,3]
[341319867,1730786840635,-676.21,0.00030684,3]
[341319868,1730786840661,-711.73,0.00030684,3]
[341319869,1730786840687,-500.0,0.00030684,3]
[341319870,1730786840713,-500.0,0.00030684,3]
[341319871,1730786840738,-868.98,0.00030684,3]
[341319872,1730786840768,-500.0,0.00030957,3]
[341319873,1730786840797,-500.0,0.00030957,3]
[341319874,1730786840820,-500.0,0.00030957,3]
[341319875,1730786840842,-500.0,0.00030958,3]
[341319876,1730786840865,-500.0,0.00030958,3]
[341319877,1730786840887,-151.0,0.00030958,7]
[341319878,1730786840910,-151.0,0.00030958,7]
[341319879,1730786840933,-208.252998,0.00030958,7]
[341319880,1730786840955,-151.0,0.00030958,7]
[341319881,1730786840980,-676.21,0.00030958,3]
[341319882,1730786841011,-711.73,0.00030958,3]
[341319883,1730786841033,-500.0,0.00030958,3]
[341319884,1730786841055,-500.0,0.00030958,3]
[341319885,1730786841079,-868.98,0.00030958,3]
[341319886,1730786841101,-517.17983612,0.00031231,3]
[341319887,1730786841122,-500.0,0.00031231,3]
[341319888,1730786841143,-151.0,0.00031231,7]
[341319889,1730786841165,-500.0,0.00031231,3]
[341319890,1730786841190,-281.61077673,0.00031231,3]
[341319891,1730786841212,-583.53,0.00031231,3]
[341319892,1730786841234,-543.28304027,0.00031231,3]
[341319893,1730786841266,-500.0,0.00031231,3]
[341319894,1730786841286,-500.0,0.00031232,3]
[341319895,1730786841308,-151.0,0.00031232,7]
[341319896,1730786841330,-500.0,0.00031232,3]
[341319897,1730786841438,-676.21,0.00031232,3]
[341319898,1730786841466,-711.73,0.00031232,3]
[341319899,1730786841489,-500.0,0.00031232,3]
[341319900,1730786841511,-500.0,0.00031232,3]
[341319901,1730786841532,-868.98,0.00031232,3]
[341319902,1730786841553,-151.0,0.00031356,7]
[341319903,1730786841575,-151.0,0.00031356,7]
[341319904,1730786841597,-1655.99,0.00031373,10]
[341319905,1730786841618,-500.0,0.00031383,5]
[341319906,1730786841638,-500.0,0.00031383,2]
[341319907,1730786841659,-500.0,0.00031458,5]
[341319908,1730786841680,-500.0,0.00031458,5]
[341319909,1730786841700,-160.63502731,0.00031484,5]
[341319910,1730786841722,-1987.18,0.00031486,10]
[341319911,1730786841744,-2384.62,0.00031496,10]
[341319912,1730786841767,-527.06542983,0.00031505,3]
[341319913,1730786841788,-644.4039843,0.00031505,3]
[341319914,1730786841810,-583.53,0.00031505,3]
[341319915,1730786841831,-500.0,0.00031506,3]
[341319916,1730786841851,-1000.0,0.00031506,30]
[341319917,1730786841872,-151.0,0.00031506,7]
[341319918,1730786841894,-500.0,0.00031506,3]
[341319919,1730786841914,-151.0,0.00031506,7]
[341319920,1730786841935,-161.987748,0.00031506,7]
[341319921,1730786841956,-151.0,0.00031506,7]
[341319922,1730786841980,-676.21,0.00031506,3]
[341319923,1730786842007,-711.73,0.00031506,3]
[341319924,1730786842029,-500.0,0.00031506,3]
[341319925,1730786842050,-500.0,0.00031506,3]
[341319926,1730786842073,-868.98,0.00031506,3]
[341319927,1730786842094,-436.03794808,0.00031559,5]
[341319928,1730786842115,-834.036907,0.00031731,2]
[341319929,1730786842135,-227.7,0.00031769,3]
[341319930,1730786842156,-683.14,0.0003177,3]
[341319931,1730786842176,-151.0,0.00031779,7]
[341319932,1730786842198,-253.443234,0.00031779,7]
[341319933,1730786842221,-151.0,0.00031779,7]
[341319934,1730786842243,-583.53,0.00031779,3]
[341319935,1730786842266,-500.0,0.0003178,3]
[341319936,1730786842287,-300.17321676,0.0003178,3]
[341319937,1730786842311,-676.21,0.0003178,3]
[341319938,1730786842334,-711.73,0.0003178,3]
[341319939,1730786842356,-527.84377944,0.0003178,3]
[341319940,1730786842377,-500.0,0.0003178,3]
[341319941,1730786842398,-868.98,0.0003178,3]
[341319942,1730786842420,-151.0,0.00031919,7]
[341319943,1730786842441,-500.0,0.0003192,2]
[341319944,1730786842462,-151.0,0.0003196,7]
[341319945,1730786842484,-2763.39859423,0.00032,2]
[341319946,1730786842510,-1437.0,0.00032,7]
[341319947,1730786842541,-151.0,0.00032034,7]
[341319948,1730786842570,-583.53,0.00032053,3]
[341319949,1730786842595,-500.0,0.00032054,3]
[341319950,1730786842622,-676.21,0.00032054,3]
[341319951,1730786842650,-711.73,0.00032054,3]
[341319952,1730786842677,-500.0,0.00032054,3]
[341319953,1730786842703,-868.98,0.00032054,3]
[341319954,1730786842729,-153.0,0.0003211,2]
[341319955,1730786842756,-153.0,0.0003211,2]
[341319956,1730786842782,-177.27132,0.00032261,2]
[341319957,1730786842806,-365.87912544,0.00032272,2]
[341319958,1730786842829,-502.92068442,0.00032272,5]
[341319959,1730786842853,-151.0,0.00032272,7]
[341319960,1730786842876,-614.0,0.000323,2]
[341319961,1730786842902,-151.0,0.00032327,7]
[341319962,1730786842927,-151.0,0.00032327,7]
[341319963,1730786842952,-151.34285,0.00032327,7]
[341319964,1730786842974,-151.0,0.00032327,7]
[341319965,1730786843006,-583.53,0.00032327,3]
[341319966,1730786843030,-500.0,0.00032328,3]
[341319967,1730786843056,-263.249332,0.00032328,7]
[341319968,1730786843083,-213.663166,0.00032328,7]
[341319969,1730786843112,-676.21,0.00032328,3]
[341319970,1730786843141,-711.73,0.00032328,3]
[341319971,1730786843168,-500.0,0.00032328,3]
[341319972,1730786843193,-868.98,0.00032328,3]
[341319973,1730786843216,-1355.34,0.000324,2]
[341319974,1730786843237,-637.345415,0.0003242,2]
[341319975,1730786843262,-3000.0,0.000325,12]
[341319976,1730786843288,-201.76616,0.0003251,7]
[341319977,1730786843314,-3000.0,0.0003251,12]
[341319978,1730786843339,-156.248612,0.00032519,7]
[341319979,1730786843362,-512.11,0.00032519,3]
[341319980,1730786843388,-328.11098225,0.00032519,3]
[341319981,1730786843413,-894.75,0.00032519,3]
[341319982,1730786843437,-151.0,0.0003252,7]
[341319983,1730786843459,-153.655448,0.0003252,7]
[341319984,1730786843482,-151.0,0.0003252,7]
[341319985,1730786843508,-3000.0,0.0003252,12]
[341319986,1730786843532,-151.0,0.0003252,7]
[341319987,1730786843555,-3000.0,0.0003253,12]
[341319988,1730786843579,-3000.0,0.0003254,12]
[341319989,1730786843604,-3000.0,0.0003255,12]
[341319990,1730786843628,-3000.0,0.0003256,12]
[341319991,1730786843650,-1000.0,0.0003256,2]
[341319992,1730786843674,-151.0,0.0003257,7]
[341319993,1730786843698,-3000.0,0.0003257,12]
[341319994,1730786843722,-3000.0,0.0003258,12]
[341319995,1730786843849,-244.262678,0.0003258,7]
[341319996,1730786843875,-3000.0,0.0003259,12]
[341319997,1730786843899,-3000.0,0.000326,12]
[341319998,1730786843922,-583.53,0.00032601,3]
[341319999,1730786843943,-500.26905601,0.00032602,3]
[341320000,1730786843967,-676.21,0.00032602,3]
[341320001,1730786843992,-711.73,0.00032602,3]
[341320002,1730786844018,-500.0,0.00032602,3]
[341320003,1730786844040,-868.98,0.00032602,3]
[341320004,1730786844064,-3000.0,0.0003261,12]
[341320005,1730786844087,-3000.0,0.0003262,12]
[341320006,1730786844109,-3000.0,0.0003263,12]
[341320007,1730786844131,-3000.0,0.0003264,12]
[341320008,1730786844154,-3000.0,0.0003265,12]
[341320009,1730786844176,-500.0,0.00032653,120]
[341320010,1730786844197,-500.0,0.00032653,120]
[341320011,1730786844218,-500.0,0.00032653,120]
[341320012,1730786844239,-599.79,0.00032653,120]
[341320013,1730786844261,-3000.0,0.0003266,12]
[341320014,1730786844283,-318.513845,0.00032664,2]
[341320015,1730786844306,-3000.0,0.0003267,13]
[341320016,1730786844328,-3000.0,0.0003268,13]
[341320017,1730786844349,-3000.0,0.0003269,13]
[341320018,1730786844372,-3000.0,0.000327,13]
[341320019,1730786844394,-615.70765084,0.00032709,2]
[341320020,1730786844416,-3000.0,0.0003271,13]
[341320021,1730786844437,-3000.0,0.0003272,13]
[341320022,1730786844459,-3000.0,0.0003273,13]
[341320023,1730786844481,-3000.0,0.0003274,13]
[341320024,1730786844506,-3000.0,0.0003275,13]
[341320025,1730786844527,-930.50692326,0.00032753,5]
[341320026,1730786844549,-3000.0,0.0003276,13]
[341320027,1730786844571,-3495.832908,0.0003277,13]
[341320028,1730786844595,-894.75,0.00032793,3]
[341320029,1730786844616,-177.27132,0.00032798,2]
[341320030,1730786844637,-502.04390442,0.00032827,5]
[341320031,1730786844660,-583.53,0.00032875,3]
[341320032,1730786844681,-1000.0,0.00032876,30]
[341320033,1730786844702,-709.11394042,0.00032876,30]
[341320034,1730786844723,-500.0,0.00032876,7]
[341320035,1730786844743,-1502.81459949,0.00032876,2]
[341320036,1730786844772,-676.21,0.00032876,3]
[341320037,1730786844794,-711.73,0.00032876,3]
[341320038,1730786844815,-500.0,0.00032876,3]
[341320039,1730786844836,-868.98,0.00032876,3]
[341320040,1730786844857,-167.247924,0.00032877,120]
[341320041,1730786844879,-4233.79035628,0.0003288,30]
[341320042,1730786844899,-300.0,0.00033,14]
[341320043,1730786844919,-156.0,0.00033,2]
[341320044,1730786844940,-156.0,0.00033,2]
[341320045,1730786844961,-161.53337098,0.00033051,5]
[341320046,1730786844984,-894.75,0.00033067,3]
[341320047,1730786845012,-318.513845,0.00033067,2]
[341320048,1730786845033,-455.4,0.00033139,3]
[341320049,1730786845055,-583.53,0.00033149,3]
[341320050,1730786845081,-676.21,0.0003315,3]
[341320051,1730786845104,-711.73,0.0003315,3]
[341320052,1730786845126,-500.0,0.0003315,3]
[341320053,1730786845148,-868.98,0.0003315,3]
[341320054,1730786845171,-1000.0,0.00033332,2]
[341320055,1730786845192,-1000.0,0.00033332,2]
[341320056,1730786845214,-1000.0,0.00033332,2]
[341320057,1730786845236,-1000.0,0.00033332,2]
[341320058,1730786845258,-1000.0,0.00033332,2]
[341320059,1730786845281,-1000.0,0.00033332,2]
[341320060,1730786845302,-176.03445442,0.00033332,2]
[341320061,1730786845323,-22775.0,0.00033333,90]
[341320062,1730786845344,-177.27132,0.00033336,2]
[341320063,1730786845367,-894.75,0.00033341,3]
[341320064,1730786845392,-583.53,0.00033423,3]
[341320065,1730786845416,-676.21,0.00033424,3]
[341320066,1730786845438,-711.73,0.00033424,3]
[341320067,1730786845460,-500.0,0.00033424,3]
[341320068,1730786845481,-868.98,0.00033424,3]
[341320069,1730786845509,-834.036907,0.00033426,2]
[341320070,1730786845529,-1211.15229029,0.00033464,14]
[341320071,1730786845550,-1134.80999332,0.00033466,2]
[341320072,1730786845570,-318.513845,0.0003347,2]
[341320073,1730786845592,-894.75,0.00033615,3]
[341320074,1730786845613,-469.0,0.00033646,30]
[341320075,1730786845633,-6527.82,0.00033664,30]
[341320076,1730786845653,-190.67,0.00033664,30]
[341320077,1730786845674,-155.0,0.00033664,30]
[341320078,1730786845695,-155.0,0.00033664,30]
[341320079,1730786845716,-155.0,0.00033664,30]
[341320080,1730786845737,-155.0,0.00033664,30]
[341320081,1730786845758,-155.0,0.00033664,30]
[341320082,1730786845779,-155.0,0.00033664,30]
[341320083,1730786845800,-174.80981786,0.00033664,30]
[341320084,1730786845820,-526.6,0.00033665,30]
[341320085,1730786845843,-583.53,0.00033697,3]
[341320086,1730786845863,-500.0,0.00033698,12]
[341320087,1730786845886,-676.21,0.00033698,3]
[341320088,1730786845912,-711.73,0.00033698,3]
[341320089,1730786845933,-500.0,0.00033698,3]
[341320090,1730786845956,-868.98,0.00033698,3]
[341320091,1730786845979,-8800.0,0.00033698,30]
[341320092,1730786846005,-462.4219,0.000337,2]
[341320093,1730786846027,-265.4035828,0.000337,2]
[341320094,1730786849077,-237.04950897,0.00031505,3]
[341320095,1730786850168,-262.95049103,0.00031505,3]
[341320096,1730786850192,-182.61779906,0.00031779,3]
[341320097,1730786850213,-197.0183172,0.000337,2]
[341320098,1730786850233,-159.43094989,0.00033799,16]
[341320099,1730786850257,-318.513845,0.00033874,2]
[341320100,1730786850278,-177.27132,0.00033874,2]
[341320101,1730786850300,-894.75,0.00033889,3]
[341320102,1730786850324,-583.53,0.00033971,3]